Cogmind - Beta 16.1 *** ADVENTURER MODE // 2026.02.14 @ 11:12:36 Player: Wilihelm Result: Self-destructed Performance ------------- Evolutions (1) 500 Regions Visited (3) 600 Robots Destroyed (21) 105 Value Destroyed (718) 718 Prototype IDs (0) 0 Alien Tech Used (0) 0 Bonus (0) 0 TOTAL SCORE: 1923 Bonus ------- None Cogmind --------- Core Integrity 364/400 Matter 232/300 Energy 160/160 System Corruption 0% Temperature Cool (0) Movement Treading (160) Location -9/Storage Parts ------- > --- POWER (1) -------- Light Nuclear Core > --- PROPULSION (2) --- Improved Treads Improved Treads > --- UTILITY (4) ------ Medium Storage Unit Signal Interpreter Improved Targeting Computer > --- WEAPON (2) ------- Improved Light Cannon > --- INVENTORY (10) --- Light Ion Engine Light Nuclear Core Improved Treads Improved Treads Weight Redist. System Structural Scanner Visual Processing Unit Peak State ------------ > --- POWER ------------ Light Nuclear Core > --- PROPULSION ------- Improved Treads Improved Treads > --- UTILITY ---------- Medium Storage Unit Improved Sensor Array Signal Interpreter Improved Targeting Computer > --- WEAPON ----------- Improved Light Cannon > --- INVENTORY -------- Light Nuclear Core Improved Treads Improved Treads Weight Redist. System Visual Processing Unit [Rating: 17] Favorites ----------- Power Ion Engine Engine Ion Engine Power Core Light Nuclear Core Propulsion Improved Treads Treads Improved Treads Utility Medium Storage Unit Device Structural Scanner Storage Medium Storage Unit Processor Signal Interpreter Weapon Particle Cannon Energy Cannon Particle Cannon Ballistic Gun Light Assault Rifle Ballistic Cannon Improved Light Cannon Build | -11 -10 -9 -9 ------- Run | Yrd Mat Mat Sto Slots Evolved 2 | . . 2 . Power . | . . . . Propulsion . | . . . . Utility 2 | . . 2 . Weapon . | . . . . Parts Attached 22 | 6 9 6 1 Power 3 | 1 1 1 . Engine 2 | 1 1 . . Core 1 | . . 1 . Reactor . | . . . . Propulsion 7 | 2 4 1 . Treads 7 | 2 4 1 . Leg . | . . . . Wheel . | . . . . Hover . | . . . . Flight . | . . . . Utility 7 | 1 2 3 1 Device 3 | . 1 2 . Storage 2 | 1 1 . . Processor 2 | . . 1 1 Hackware . | . . . . Protection . | . . . . Artifact . | . . . . Weapon 5 | 2 2 1 . Energy Gun . | . . . . Energy Cannon 2 | . 2 . . Ballistic Gun 2 | 2 . . . Ballistic Cannon 1 | . . 1 . Launcher . | . . . . Special Weapon . | . . . . Impact Weapon . | . . . . Slashing Weapon . | . . . . Piercing Weapon . | . . . . Special Melee Weapon . | . . . . Unidentified Prototypes . | . . . . Parts Lost 2 | . . 1 1 Power . | . . . . Propulsion . | . . . . Utility 2 | . . 1 1 Weapon . | . . . . Highest Loss Streak 1 | . . 1 1 To Critical Strikes . | . . . . Average Backups 6 | . 7 6 5 Power 1 | . 1 2 1 Propulsion 1 | . 2 1 2 Utility 1 | . 1 1 2 Weapon 1 | . 1 1 . Tool/Special . | . . . . Unused Backups 9 | . 2 2 5 Power 2 | . . . 2 Propulsion . | . . . . Utility 5 | . 2 . 3 Weapon 2 | . . 2 . Tool/Special . | . . . . Average Slot Usage (%) 93 | . 94 96 88 Engine 10 | . 14 10 . Core 2 | . . . 11 Treads 25 | . 27 22 22 Device 13 | . 9 21 13 Storage 12 | . 14 11 11 Processor 6 | . . 10 19 Energy Cannon 18 | . 25 16 . Ballistic Cannon 2 | . . 2 11 Peak Build Rating 17 | 6 12 16 17 Average Rating 12 | 4 10 13 16 On Entrance 8 | . 6 12 16 Avg Prop Armor Cover (%) . | . . . . Naked Turns . | . . . . Heaviest Build 25 | 12 24 25 21 Greatest Support 46 | 40 46 46 46 Greatest Overweight (x) . | . . . . Average Overweight (x) . | . . . . Largest Inventory Capacity 10 | 8 10 10 10 Average Capacity 9 | 6 9 10 10 Most Carried 10 | 4 10 7 7 Average Carried 6 | 1 7 6 5 Final Capacity 10 | 8 10 10 10 Final Carried 8 | 1 8 6 7 Class Distribution -------------------- 82% | Mutant 17% | Skirmisher Dominant Class ---------------- Mutant | -10/Materials Skirmisher | -9/Materials Mutant | -9/Storage Resources | -11 -10 -9 -9 ----------- Run | Yrd Mat Mat Sto Matter Collected 617 | 222 251 61 83 Remotely . | . . . . Salvage Created 829 | . 541 147 141 Parts 34 | . 26 3 5 Haulers Intercepted 1 | . 1 . . Recyclers Shooed . | . . . . Parts Field Recycled . | . . . . Retrieved Matter . | . . . . Parts Self-Destructed . | . . . . Prevented . | . . . . Parts Restored . | . . . . Kills | -11 -10 -9 -9 ------- Run | Yrd Mat Mat Sto Combat Hostiles Destroyed 16 | . 8 4 4 Cannons 15 | . 7 4 4 Classes Destroyed 6 | . 4 2 . Hauler 1 | . 1 . . Recycler 1 | . 1 . . Watcher 3 | . 2 . 1 Grunt 12 | . 8 2 2 Duelist 1 | . . 1 . Sentry 3 | . . 1 2 Best Kill Streak 3 | . 3 2 2 Combat Bots Only 2 | . 2 2 2 Max Kills in Single Turn 1 | . 1 1 1 Gunslinging . | . . . . Exploded . | . . . . Melee . | . . . . Uniques/NPCs Destroyed . | . . . . Combat | -11 -10 -9 -9 -------- Run | Yrd Mat Mat Sto Hostile Shots Fired 84 | . 38 30 16 Missed 16 | . 8 6 2 Hits 68 | . 30 24 14 Melee 1 | . . 1 . Projectile 67 | . 30 23 14 Critical Strikes 1 | . . . 1 Damage Taken 713 | . 302 261 150 Core 36 | . . 36 . Absorbed by Shields . | . . . . Ignored by Resistances 212 | . 93 77 42 Core Remaining (%) 100 | 100 100 . . Volleys Fired 72 | . 28 20 24 Largest 2 | . 2 2 1 Hottest 136 | . 136 136 33 Shots Fired 103 | . 53 26 24 Gun . | . . . . Cannon 103 | . 53 26 24 Launcher . | . . . . Special . | . . . . Kinetic 38 | . . 14 24 Thermal 65 | . 53 12 . Explosive . | . . . . Electromagnetic . | . . . . Robot Hit Streak 28 | . 10 25 28 Robot Miss Streak 2 | . 2 . 2 Penetration Max . | . . . . Secondary Targets . | . . . . Shots Hit Robots 76 | . 34 24 18 Core Hits 24 | . 13 5 6 Critical Kills . | . . . . Critical Parts Destroyed . | . . . . Critical Strikes 2 | . . . 2 Blast 2 | . . . 2 Melee Attacks . | . . . . Impact . | . . . . Slashing . | . . . . Piercing . | . . . . Sneak Attacks . | . . . . Combat Hostiles . | . . . . Follow-up Attacks . | . . . . Damage Inflicted 1598 | . 697 503 398 Guns . | . . . . Cannons 1598 | . 697 503 398 Explosions . | . . . . Melee . | . . . . Ramming . | . . . . Kinetic 675 | . . 277 398 Thermal 923 | . 697 226 . Explosive . | . . . . Electromagnetic . | . . . . Impact . | . . . . Slashing . | . . . . Piercing . | . . . . Highest Corruption . | . . . . Average Corruption . | . . . . Corruption Purged . | . . . . Corruption Blocked . | . . . . Overload Shots . | . . . . Overflow Damage . | . . . . Projectiles . | . . . . Explosions . | . . . . Melee . | . . . . Knockbacks 3 | . . . 3 Impact . | . . . . Kinetic 3 | . . . 3 Secondary . | . . . . Self-Inflicted Damage . | . . . . Shots . | . . . . Rammed . | . . . . Targets Rammed . | . . . . Kicked . | . . . . Crushed . | . . . . Highest Temperature 574 | . 574 399 22 Average Temperature 186 | . 198 179 6 Received Heat Transfer 417 | . 219 102 96 Effects 17 | . 17 . . Shutdowns 3 | . 3 . . Energy Bleed 2 | . 2 . . Interference 5 | . 5 . . Matter Decay 2 | . 2 . . Short Circuit 1 | . 1 . . Damage (minor) 3 | . 3 . . Damage (major) 1 | . 1 . . Siege Activations . | . . . . Martial Activations . | . . . . Shielding Activations . | . . . . Robots Disrupted . | . . . . Combat Hostiles . | . . . . Robots Corrupted . | . . . . Combat Hostiles . | . . . . Parts Fried . | . . . . Impact Corruptions . | . . . . Robots Melted 1 | . 1 . . Combat Hostiles 1 | . 1 . . Parts Melted 2 | . 1 1 . Heat Transferred 1665 | . 1258 407 . Parts Sabotaged . | . . . . Parts Stolen . | . . . . Parts Stripped . | . . . . Power Chain Reactions . | . . . . Alert | -11 -10 -9 -9 ------- Run | Yrd Mat Mat Sto Maximum Alert Level . | . . . . Low Security (%) 100 | 100 100 100 100 Level 1 . | . . . . Level 2 . | . . . . Level 3 . | . . . . Level 4 . | . . . . Level 5 . | . . . . High Security . | . . . . Max Security . | . . . . Peak Influence 75 | . 75 40 30 Initial 7 | . . . 7 Average 13 | . 17 6 12 Influence Increases 513 | . 279 118 116 Destroy 0b10 Robot/C 320 | . 160 80 80 Destroy 0b10 Robot/NC 25 | . 20 . 5 Destroy Leader 98 | . 56 20 22 Successful Hack 35 | . 17 18 . Disable Machine 18 | . 9 . 9 Destroy Structure 2 | . 2 . . Lose Combat Pursuer 15 | . 15 . . Influence Decreases 493 | . 279 98 116 Entered New Map 13 | . . . 13 Time Decay 463 | . 279 88 96 Lost Part 17 | . . 10 7 Squads Dispatched 1 | . 1 . . Investigation 1 | . 1 . . Extermination . | . . . . Reinforcement . | . . . . Assault . | . . . . Garrison . | . . . . Intercept . | . . . . Searches Triggered . | . . . . Construction Impeded . | . . . . Haulers Reinforced . | . . . . Active Scanning Responses . | . . . . Cargo Convoy Interrupts . | . . . . Stealth | -11 -10 -9 -9 --------- Run | Yrd Mat Mat Sto Distress Signals 4 | . 1 1 2 Communications Jammed . | . . . . Distress Signals . | . . . . Times Spotted 30 | . 13 8 9 Peak Tracking Total 6 | . 3 6 5 Tactical Retreats 1 | . 1 . . Traps | -11 -10 -9 -9 ------- Run | Yrd Mat Mat Sto Traps Triggered . | . . . . Indirectly . | . . . . Trap Hack Attempts . | . . . . Triggered . | . . . . Disarmed . | . . . . Reprogrammed . | . . . . Reused . | . . . . Traps Extracted . | . . . . Installed . | . . . . Triggered . | . . . . Machines | -11 -10 -9 -9 ---------- Run | Yrd Mat Mat Sto Machines Disabled 2 | . 1 . 1 Max in Single Turn 1 | . 1 . 1 Machines Repaired . | . . . . Machines Dismantled . | . . . . Machines Sabotaged . | . . . . Overloaded Fab Kills . | . . . . Hacking | -11 -10 -9 -9 --------- Run | Yrd Mat Mat Sto Machines Accessed 11 | . 7 4 . Terminals 10 | . 6 4 . Fabricators . | . . . . Repair Stations . | . . . . Recycling Units 1 | . 1 . . Scanalyzers . | . . . . Garrison Access . | . . . . Total Hacks 38 | . 24 14 . Successful 18 | . 12 6 . Failed 20 | . 12 8 . Catastrophic 3 | . 1 2 . Database Lockouts . | . . . . Manual 20 | . 12 8 . Terminals 34 | . 20 14 . Fabricators . | . . . . Repair Stations . | . . . . Recycling Units 4 | . 4 . . Scanalyzers . | . . . . Garrison Access . | . . . . Terminal Hacks 16 | . 10 6 . Record 1 | . . 1 . Emergency Access Points 1 | . . 1 . Alert Level 2 | . 2 . . Locate Traps 2 | . 1 1 . Surveillance Status 1 | . . 1 . Patrol Status 1 | . . 1 . Transport Status 1 | . 1 . . Investigation Status 2 | . 2 . . Assault Status 1 | . 1 . . Recall Investigation 1 | . 1 . . Zone Layout 3 | . 2 1 . Fabricator Hacks . | . . . . Repair Station Hacks . | . . . . Recycling Unit Hacks 1 | . 1 . . Report Inventory 1 | . 1 . . Scanalyzer . | . . . . Garrison Access Hacks . | . . . . Unauthorized Hacks 1 | . 1 . . Terminals . | . . . . Fabricators . | . . . . Repair Stations . | . . . . Recycling Units 1 | . 1 . . Reject 1 | . 1 . . Scanalyzers . | . . . . Garrison Access . | . . . . Data Cores Recovered . | . . . . Used . | . . . . Hacking Detections 10 | . 6 4 . Full Trace Events 1 | . 1 . . Feedback Events . | . . . . Feedback Blocked . | . . . . Robot Schematics Acquired . | . . . . Robots Built . | . . . . Authchips . | . . . . Time . | . . . . Total Robot Build Rating . | . . . . Part Schematics Acquired . | . . . . Parts Built . | . . . . Authchips . | . . . . Time . | . . . . Total Part Build Rating . | . . . . Part Studies Acquired . | . . . . Parts Repaired . | . . . . Time . | . . . . Parts Recycled . | . . . . Recycled Matter . | . . . . Retrieved Matter . | . . . . Retrieved Components . | . . . . Parts Scanalyzed . | . . . . Part Schematics Acquired . | . . . . Parts Damaged . | . . . . Bothacking | -11 -10 -9 -9 ------------ Run | Yrd Mat Mat Sto Used RIF Installer . | . . . . Robots Hacked . | . . . . Non-combat . | . . . . Combat . | . . . . Robot Hacks Applied . | . . . . Relay Couplers Released . | . . . . Fabnet Peak Effective % . | . . . . Robots Rewired . | . . . . Allies Hacked . | . . . . Hacks Repelled . | . . . . Allies | -11 -10 -9 -9 -------- Run | Yrd Mat Mat Sto Total Allies . | . . . . Largest Group . | . . . . Highest-Rated Group . | . . . . Highest-Rated Ally . | . . . . Total Orders . | . . . . Ally Attacks . | . . . . Total Damage . | . . . . Kills . | . . . . Allies Corrupted . | . . . . Allies Melted . | . . . . Intel | -11 -10 -9 -9 ------- Run | Yrd Mat Mat Sto Active Infowar (turns) 1277 | . 609 414 254 Sensors 668 | . . 414 254 Structural 1003 | . 609 394 . Robot Analysis Total . | . . . . Derelict Logs Recovered . | . . . . Drone Launches . | . . . . Drone Recoveries . | . . . . Exploration | -11 -10 -9 -9 ------------- Run | Yrd Mat Mat Sto Turns Passed 1658 | 86 898 414 260 Spaces Moved 877 | 53 477 218 129 Core 10 | 10 . . . Treads 867 | 43 477 218 129 Legs . | . . . . Wheels . | . . . . Hover . | . . . . Flight . | . . . . Fastest Speed 50 | 50 160 160 160 Average Speed 158 | 139 160 160 160 Slowest Speed 160 | 160 160 160 160 Overloaded Moves . | . . . . Propulsion Burnouts . | . . . . Robots Hopped . | . . . . Potential Cave-ins . | . . . . Cave-ins Triggered . | . . . . Exploration Rate (%) 39 | 4 90 30 33 Regions Visited 3 Branch Regions 1 Pre-discovered Areas . | . . . . Known Exits Taken 1 | . . 1 . Unknown Exits Taken 2 | 1 1 . . Scrap Searched . | . . . . Spaces Dug . | . . . . Terrain Destroyed . | . . . . Melee . | . . . . Projectile . | . . . . AOE . | . . . . Terrain Rammed . | . . . . Walls Destroyed . | . . . . Machines Disabled . | . . . . Actions | -11 -10 -9 -9 --------- Run | Yrd Mat Mat Sto Total 1042 | 65 560 258 159 Wait 24 | . 17 7 . Move 874 | 52 476 217 129 Hop . | . . . . Pick Up 31 | 7 17 4 3 Fast Attach 1 | . 1 . . Attach 15 | 6 4 4 1 Detach . | . . . . Swap 9 | . 7 2 . Drop 16 | . 10 4 2 Fire 72 | . 28 20 24 Melee . | . . . . Ram . | . . . . Kick . | . . . . Crush . | . . . . Escape Stasis . | . . . . Rewire . | . . . . Trap . | . . . . Miscellaneous . | . . . . Route ------- -11/Scrapyard -10/Materials (discovered 4 exits: *Mat x3 / [*Min]) -9/Materials (discovered 2 exits: *Sto x2) -9/Storage History --------- Turn | Location | Event 6 | -11/Scrapyard | Discovered new exit (range 14) 87 | -11/Scrapyard | Entered Materials 309 | -10/Materials | Build established: Mutant 327 | -10/Materials | Discovered new exit (range 16) 634 | -10/Materials | Discovered new exit (range 3) 739 | -10/Materials | Discovered new exit (range 10) 916 | -10/Materials | Discovered new exit (range 8) 985 | -10/Materials | Entered another Materials area 985 | -9/Materials | Evolved 2 slots: Utility x2 1263 | -9/Materials | Discovered new exit (range 11) 1326 | -9/Materials | Discovered new exit (range 16) 1362 | -9/Materials | Identified exit to Storage 1399 | -9/Materials | Entered Storage 1659 | -9/Storage | Self-destructed Last Messages --------------- Acquired Structural Scanner. Acquired Lgt. Ion Engine. K-01 Serf collects debris. W-16 Scout distress signal alerts nearby ally. K-01 Serf cleans the Compression Vault. W-16 Scout knocked back. W-16 Scout destroyed. K-01 Serf collects debris. K-01 Serf cleans the Compression Vault. Imp. Sensor Array destroyed. Y-45 Defender Imp. Ion Engine blasted off. Y-45 Defender destroyed. O-16 Technician distress signal alerts nearby ally. O-16 Technician: "IFF HANDSHAKE FAILED. SECURING TERMINAL." K-01 Serf collects debris. K-01 Serf cleans the Compression Vault. R-06 Scavenger collects Imp. Ion Engine. K-01 Serf collects debris. Map ----- +----------------------------------------------------+ | ?????????????????????????????????????????????????? | | ?????????????????????????????????????????????????? | | ?????????????????????????????????????????????????? | | ??????##+????????????????????????????????????????? | | ?????? #???????????????????????????????????????? | | ??????? #???????????????????????????????????????? | | ??????? #???????????????????????????????????????? | | ??????? #???????????????????????????????????????? | | ???????# #???????????????????????????????????????? | | ???????# #???????????????????????????????????????? | | ???????# #???????????????????????????????????????? | | ??######+###?????????????????????????????????????? | | ??# #??????+##+##???#+????????????????????? | | ??# """"" #?????? ??? ???????????????????? | | ??# "[! #??????? ????????????????????? | | ??# """"" #??????? """ """??????????????????? | | ??# """"" #???????# "R """ ????????????????? | | ??# ]|" #???????# """ """ ?????????????????? | | ??# """"" #??????## ?????????????????? | | ??# #??????#T ??????????????? | | ### #???????# """ """ """?????????????? | | #####/############ %""" """ """?????????????? | | ^% k % """ """ """ ?????????? | | % ^ k kk u????????? | | ^% %r k ????????? | | ##################### @ ????????? | | ##???????????????????# rr r ????????? | | #????????????????????+ ????????? | | #????????????????????# % #?????????? | | #????????????????????# #?????????? | | #????????????????????# b ??????????? | | #????????????????????# ########g??????????? | | ###########??????????# #??????????????????? | | # #?????????? #??????????????????? | | # =]]#??????????#######/#??????????????????? | | # =]]#?????????????????o ??????????????????? | | # ]]]#????????????????? ??????????????????? | | *+! #??????????????????gg?????????????????? | | # #??????????????????gg?????????????????? | | ## #?????????????????????????????????????? | | # #?????????????????????????????????????? | | !###########?????????????????????????????????????? | | #???????????????????????????????????????????????? | | #???????????????????????????????????????????????? | | #???????????????????????????????????????????????? | | =#???????????????????????????????????????????????? | | #???????????????????????????????????????????????? | | #???????????????????????????????????????????????? | | ##???????????????????????????????????????????????? | | | +----------------------------------------------------+ Best States ------------- Heat Dissipation 28 Energy Generation 14 Energy Capacity 250 Matter Stores 300 Matter Capacity 300 Sight Range 16 Robot Scan Range 15 Terrain Scan Density 10 Resistance: KI 20 Resistance: TH 20 Resistance: EX 20 Resistance: EM 20 Resistance: I 20 Resistance: S 20 Resistance: P 20 Evasion (%) 40 Targeting Accuracy 6 Recoil Reduction 2 Offensive Hacking 10 Item Schematics ----------------- None Robot Schematics ------------------ None Fabricated ------------ Nothing Repaired ---------- Nothing Studied --------- None Alien Tech Used ----------------- None Achievements -------------- None Challenges ------------ None Game ------ Seed WeldingPlatingFocus Manual? 0 Play Time 00:20:08 Cumulative 11.4 hours Start 2026.02.14 @ 10:53:04 End 2026.02.14 @ 11:12:36 Sessions 1 Manual Loads 0 Difficulty Adventurer Special Mode None Game No. 11 Rogue 0 Adventurer 11 Explorer 0 Win Type - Total 0 Types 0/0/0/0/0/0/0/0/0/0 Lore% 4 Gallery% 11 Achievement% 12 Wizard Run 0 Options --------- Layout 1 ASCII 0 Keyboard 0 Movement Mouse Keybinds 0 Fullscreen 1 Font 24/Smallcaps Map View 50x40 Zoom Use 0% Tactical HUD 0 Map Filters NONE Filters NONE Steam 1 RUN: f5ac30d0-437e-4077-a460-b054a780af74